[Event "GrandPrix_29.05"]
[Site "Chess.com"]
[Date "2020.05.29"]
[Round "6"]
[White "monalize"]
[Black "bratkoo"]
[Result "0-1"]
[WhiteElo "2002"]
[BlackElo "2200"]
[TimeControl "600+2"]
[EndTime "11:52:00 PDT"]
[Termination "bratkoo won by resignation"]

1. e4 {[%clk 0:10:01.9]} 1... e6 {[%clk 0:10:00.7]} 2. d4 {[%clk 0:09:55.8]}
2... d5 {[%clk 0:10:02.1]} 3. exd5 {[%clk 0:09:56.8]} 3... exd5 {[%clk 0:10:03]}
4. Bd3 {[%clk 0:09:57.5]} 4... Nc6 {[%clk 0:10:04.3]} 5. c3 {[%clk 0:09:56.9]}
5... Bd6 {[%clk 0:10:05.4]} 6. Qf3 {[%clk 0:09:56.7]} 6... Be6 {[%clk
0:10:00.4]} 7. Ne2 {[%clk 0:09:55.1]} 7... Qd7 {[%clk 0:10:01.4]} 8. h3 {[%clk
0:09:55]} 8... Nge7 {[%clk 0:10:02]} 9. Bf4 {[%clk 0:09:53.7]} 9... O-O {[%clk
0:09:47.7]} 10. Bxd6 {[%clk 0:09:44]} 10... Qxd6 {[%clk 0:09:48.5]} 11. Nd2
{[%clk 0:09:43.6]} 11... a5 {[%clk 0:09:35.1]} 12. O-O {[%clk 0:09:33.3]} 12...
a4 {[%clk 0:09:35.7]} 13. Rfe1 {[%clk 0:09:21.3]} 13... Na5 {[%clk 0:09:34.5]}
14. Ng3 {[%clk 0:08:46.2]} 14... Ng6 {[%clk 0:09:28.5]} 15. Nh5 {[%clk
0:08:43.4]} 15... Rae8 {[%clk 0:09:03.4]} 16. Nf1 {[%clk 0:07:52.1]} 16... Qb6
{[%clk 0:08:34.2]} 17. Re2 {[%clk 0:07:46.2]} 17... Nc4 {[%clk 0:08:32.9]} 18.
Rb1 {[%clk 0:06:53.5]} 18... Nd6 {[%clk 0:08:14.3]} 19. Ne3 {[%clk 0:06:37.9]}
19... Qa5 {[%clk 0:08:03.5]} 20. a3 {[%clk 0:06:36.7]} 20... Ne4 {[%clk
0:07:52.6]} 21. Rbe1 {[%clk 0:06:20.1]} 21... f5 {[%clk 0:07:27.8]} 22. Nc2
{[%clk 0:05:10.6]} 22... Qb6 {[%clk 0:07:20.2]} 23. Nb4 {[%clk 0:05:09.6]} 23...
Qd6 {[%clk 0:07:07.5]} 24. Bc2 {[%clk 0:04:59.7]} 24... Bd7 {[%clk 0:07:06.3]}
25. Nd3 {[%clk 0:04:29.4]} 25... Bb5 {[%clk 0:07:04.4]} 26. Rd1 {[%clk
0:04:11.7]} 26... Ng5 {[%clk 0:06:58.7]} 27. Qg3 {[%clk 0:03:59.3]} 27... Rxe2
{[%clk 0:06:56.4]} 28. Qxg5 {[%clk 0:03:59.5]} 28... Rxc2 {[%clk 0:06:46.8]} 29.
Ne5 {[%clk 0:04:00.4]} 29... Qe7 {[%clk 0:06:41.1]} 30. Qg3 {[%clk 0:03:58.7]}
30... Nxe5 {[%clk 0:06:35.5]} 31. dxe5 {[%clk 0:03:59.2]} 31... f4 {[%clk
0:06:35.6]} 32. Qg4 {[%clk 0:03:55.3]} 32... Qxe5 {[%clk 0:06:34.2]} 33. Kh2
{[%clk 0:03:48.9]} 33... Be2 {[%clk 0:06:31.3]} 34. Re1 {[%clk 0:03:46.1]} 34...
Bxg4 {[%clk 0:06:31.7]} 0-1

[Event "GrandPrix_29.05"]
[Site "Chess.com"]
[Date "2020.05.29"]
[Round "6"]
[White "igorkovalenko"]
[Black "SavelievAlexei"]
[Result "1-0"]
[WhiteElo "2219"]
[BlackElo "2247"]
[TimeControl "600+2"]
[EndTime "11:52:04 PDT"]
[Termination "igorkovalenko won by resignation"]

1. d4 {[%clk 0:10:01.9]} 1... Nf6 {[%clk 0:09:59.2]} 2. Nf3 {[%clk 0:10:02.8]}
2... e6 {[%clk 0:09:59.9]} 3. e3 {[%clk 0:10:03.8]} 3... b6 {[%clk 0:09:59.6]}
4. Bd3 {[%clk 0:10:05.2]} 4... Bb7 {[%clk 0:10:00.7]} 5. O-O {[%clk 0:10:06.8]}
5... c5 {[%clk 0:10:01.3]} 6. c4 {[%clk 0:10:07.6]} 6... d6 {[%clk 0:10:01.9]}
7. Nc3 {[%clk 0:10:08.4]} 7... Be7 {[%clk 0:10:00.8]} 8. d5 {[%clk 0:10:09.5]}
8... e5 {[%clk 0:10:01.8]} 9. e4 {[%clk 0:10:02.8]} 9... a6 {[%clk 0:10:01.3]}
10. a3 {[%clk 0:10:01.3]} 10... Nbd7 {[%clk 0:09:55.4]} 11. Rb1 {[%clk 0:10:02]}
11... Nf8 {[%clk 0:09:55.8]} 12. b4 {[%clk 0:09:59]} 12... N6d7 {[%clk
0:09:47.9]} 13. Qa4 {[%clk 0:09:35.9]} 13... Ng6 {[%clk 0:09:43.6]} 14. bxc5
{[%clk 0:09:35.3]} 14... dxc5 {[%clk 0:09:45.5]} 15. Qc2 {[%clk 0:09:15.6]}
15... O-O {[%clk 0:09:44.6]} 16. a4 {[%clk 0:09:17]} 16... Rb8 {[%clk
0:09:33.3]} 17. Be3 {[%clk 0:09:05.8]} 17... a5 {[%clk 0:09:20]} 18. g3 {[%clk
0:08:51.3]} 18... Bd6 {[%clk 0:08:49.1]} 19. Kg2 {[%clk 0:08:44.9]} 19... Qe7
{[%clk 0:08:49.4]} 20. Rh1 {[%clk 0:08:38.3]} 20... Bc8 {[%clk 0:08:49.8]} 21.
h4 {[%clk 0:08:38.4]} 21... h6 {[%clk 0:08:49.1]} 22. h5 {[%clk 0:08:38.8]}
22... Nh8 {[%clk 0:08:50.4]} 23. Nh4 {[%clk 0:08:40]} 23... Nf6 {[%clk 0:08:48]}
24. Be2 {[%clk 0:08:38.8]} 24... Ng4 {[%clk 0:07:32.3]} 25. Bd2 {[%clk
0:08:21.5]} 25... g5 {[%clk 0:07:25.6]} 26. hxg6 {[%clk 0:08:05.7]} 26... fxg6
{[%clk 0:07:25.6]} 27. f3 {[%clk 0:07:41.8]} 27... Nf6 {[%clk 0:06:43.6]} 28.
Bxh6 {[%clk 0:07:41.6]} 28... Rf7 {[%clk 0:06:44.3]} 29. Bg5 {[%clk 0:07:38.5]}
29... Qd7 {[%clk 0:06:37.2]} 30. Rh2 {[%clk 0:07:33.6]} 30... Nh5 {[%clk
0:06:13.5]} 31. Nxg6 {[%clk 0:07:28.9]} 31... Nxg6 {[%clk 0:06:11.3]} 32. Rxh5
{[%clk 0:07:29.3]} 32... Be7 {[%clk 0:06:11.2]} 33. Rbh1 {[%clk 0:07:15.7]}
33... Bxg5 {[%clk 0:06:01.9]} 34. Rxg5 {[%clk 0:07:17.6]} 34... Rg7 {[%clk
0:06:03.4]} 35. Kf2 {[%clk 0:07:14.7]} 35... Qe7 {[%clk 0:05:54.6]} 36. Qd2
{[%clk 0:07:14.1]} 36... Bd7 {[%clk 0:05:53.5]} 37. Rh6 {[%clk 0:06:22.6]} 37...
Qf6 {[%clk 0:05:48.5]} 38. Ke1 {[%clk 0:06:14.5]} 38... Rf8 {[%clk 0:05:46.7]}
39. Kd1 {[%clk 0:06:15.1]} 39... Kf7 {[%clk 0:05:45.5]} 40. Kc2 {[%clk 0:06:12]}
40... Ke8 {[%clk 0:05:46.6]} 41. Kb3 {[%clk 0:06:12.6]} 41... Rfg8 {[%clk
0:05:44]} 42. Rgh5 {[%clk 0:05:40.2]} 42... Qf7 {[%clk 0:05:41.2]} 43. Qg5
{[%clk 0:05:33.8]} 43... Ne7 {[%clk 0:05:36.2]} 44. Qxe5 {[%clk 0:05:34.1]}
44... Rxg3 {[%clk 0:05:37.1]} 45. Rxb6 {[%clk 0:05:30.7]} 1-0

[Event "GrandPrix_29.05"]
[Site "Chess.com"]
[Date "2020.05.29"]
[Round "6"]
[White "Mizner"]
[Black "Shota_Azaladze"]
[Result "0-1"]
[WhiteElo "2063"]
[BlackElo "2252"]
[TimeControl "600+2"]
[EndTime "11:52:05 PDT"]
[Termination "Shota_Azaladze won by resignation"]

1. d4 {[%clk 0:10:01.9]} 1... Nf6 {[%clk 0:10:00.2]} 2. c4 {[%clk 0:10:02.4]}
2... g6 {[%clk 0:10:00.6]} 3. g3 {[%clk 0:10:03.2]} 3... Bg7 {[%clk 0:10:01.3]}
4. Bg2 {[%clk 0:10:04.4]} 4... O-O {[%clk 0:10:02.4]} 5. Nc3 {[%clk 0:10:04.4]}
5... c5 {[%clk 0:10:03.4]} 6. dxc5 {[%clk 0:09:53.9]} 6... Na6 {[%clk
0:10:03.6]} 7. Nh3 {[%clk 0:09:43.3]} 7... Nxc5 {[%clk 0:10:00.2]} 8. O-O {[%clk
0:09:44.1]} 8... d6 {[%clk 0:09:58.7]} 9. Nf4 {[%clk 0:09:45.1]} 9... a6 {[%clk
0:09:56.7]} 10. Be3 {[%clk 0:09:13.5]} 10... Rb8 {[%clk 0:09:47.7]} 11. Rc1
{[%clk 0:08:42.4]} 11... Ng4 {[%clk 0:09:34.8]} 12. Bd2 {[%clk 0:08:40]} 12...
b5 {[%clk 0:09:35.7]} 13. cxb5 {[%clk 0:08:21.7]} 13... axb5 {[%clk 0:09:37.6]}
14. b4 {[%clk 0:08:22.7]} 14... Nd7 {[%clk 0:09:28.6]} 15. Bc6 {[%clk
0:08:06.1]} 15... Ba6 {[%clk 0:08:55.5]} 16. a4 {[%clk 0:06:47.5]} 16... bxa4
{[%clk 0:08:53]} 17. Qxa4 {[%clk 0:06:43.7]} 17... Bc8 {[%clk 0:08:51.8]} 18.
Bg2 {[%clk 0:05:19.8]} 18... Nge5 {[%clk 0:08:33.8]} 19. Ncd5 {[%clk 0:05:17.1]}
19... e6 {[%clk 0:08:29.1]} 20. Nc7 {[%clk 0:04:58.7]} 20... Nb6 {[%clk
0:08:07]} 21. Qa7 {[%clk 0:04:58.7]} 21... Bd7 {[%clk 0:08:07.4]} 22. Na6 {[%clk
0:04:18.4]} 22... Rc8 {[%clk 0:07:49]} 23. Rxc8 {[%clk 0:04:14.8]} 23... Nxc8
{[%clk 0:07:47.6]} 24. Qc7 {[%clk 0:03:10.4]} 24... d5 {[%clk 0:07:40.5]} 25. e4
{[%clk 0:02:19.5]} 25... Bb5 {[%clk 0:07:31.4]} 0-1

[Event "GrandPrix_29.05"]
[Site "Chess.com"]
[Date "2020.05.29"]
[Round "6"]
[White "bernereremit"]
[Black "jncool68"]
[Result "0-1"]
[WhiteElo "2101"]
[BlackElo "2316"]
[TimeControl "600+2"]
[EndTime "11:52:18 PDT"]
[Termination "jncool68 won by resignation"]

1. e4 {[%clk 0:09:40.9]} 1... c5 {[%clk 0:09:58.3]} 2. Nc3 {[%clk 0:09:41.3]}
2... d6 {[%clk 0:09:58.9]} 3. Nf3 {[%clk 0:09:41.8]} 3... e6 {[%clk 0:09:59.3]}
4. d4 {[%clk 0:09:42.9]} 4... cxd4 {[%clk 0:10:01.2]} 5. Nxd4 {[%clk 0:09:44.5]}
5... Nf6 {[%clk 0:10:02.3]} 6. g4 {[%clk 0:09:41.9]} 6... h6 {[%clk 0:10:02.6]}
7. Rg1 {[%clk 0:09:41.9]} 7... e5 {[%clk 0:10:02]} 8. Nf5 {[%clk 0:09:40.4]}
8... Nc6 {[%clk 0:09:54.5]} 9. Be3 {[%clk 0:09:26.7]} 9... Be6 {[%clk
0:09:53.9]} 10. Qd2 {[%clk 0:09:14.9]} 10... g6 {[%clk 0:09:44.5]} 11. O-O-O
{[%clk 0:08:45.9]} 11... gxf5 {[%clk 0:09:40.8]} 12. exf5 {[%clk 0:08:46]} 12...
Bd7 {[%clk 0:09:41.7]} 13. h4 {[%clk 0:08:41.8]} 13... h5 {[%clk 0:09:20.8]} 14.
f3 {[%clk 0:07:50.8]} 14... hxg4 {[%clk 0:09:19.1]} 15. fxg4 {[%clk 0:07:51.5]}
15... Rxh4 {[%clk 0:09:03.3]} 16. Be2 {[%clk 0:06:56.5]} 16... Nd4 {[%clk
0:07:49.8]} 17. Bxd4 {[%clk 0:06:40.2]} 17... exd4 {[%clk 0:07:51.7]} 18. Qxd4
{[%clk 0:06:38.8]} 18... Bh6+ {[%clk 0:07:37.6]} 19. Kb1 {[%clk 0:06:37.5]}
19... Bg5 {[%clk 0:07:09.7]} 20. Qxd6 {[%clk 0:06:01.9]} 20... Qb6 {[%clk
0:07:09.8]} 21. Qe5+ {[%clk 0:05:55.4]} 21... Kf8 {[%clk 0:07:10.2]} 22. Rh1
{[%clk 0:05:29.9]} 22... Re8 {[%clk 0:07:07.3]} 23. Qg3 {[%clk 0:05:30.6]} 23...
Rxh1 {[%clk 0:06:54.5]} 24. Rxh1 {[%clk 0:05:32.5]} 24... Bc6 {[%clk 0:06:48]}
25. Rd1 {[%clk 0:03:51.6]} 25... Re3 {[%clk 0:06:38.8]} 26. Qd6+ {[%clk
0:03:43.7]} 26... Kg7 {[%clk 0:06:39.4]} 27. Bd3 {[%clk 0:03:31]} 27... Bf3
{[%clk 0:06:39.7]} 28. Qxb6 {[%clk 0:03:21.2]} 28... axb6 {[%clk 0:06:41.6]} 29.
Rg1 {[%clk 0:03:17.6]} 29... Bxg4 {[%clk 0:06:33.2]} 30. Nd5 {[%clk 0:03:10.4]}
30... Nxd5 {[%clk 0:06:30.4]} 0-1

[Event "GrandPrix_29.05"]
[Site "Chess.com"]
[Date "2020.05.29"]
[Round "6"]
[White "Koalaskakistis"]
[Black "Grebnev_A"]
[Result "0-1"]
[WhiteElo "2041"]
[BlackElo "2172"]
[TimeControl "600+2"]
[EndTime "11:52:59 PDT"]
[Termination "Grebnev_A won by resignation"]

1. f4 {[%clk 0:10:01.9]} 1... Nf6 {[%clk 0:10:00]} 2. Nf3 {[%clk 0:10:01.4]}
2... g6 {[%clk 0:10:00.9]} 3. g3 {[%clk 0:10:02.3]} 3... Bg7 {[%clk 0:10:02.3]}
4. Bg2 {[%clk 0:10:03.8]} 4... O-O {[%clk 0:10:04.2]} 5. O-O {[%clk 0:10:05.1]}
5... d5 {[%clk 0:10:05.7]} 6. d3 {[%clk 0:10:06.5]} 6... c5 {[%clk 0:10:06.8]}
7. Qe1 {[%clk 0:09:52.8]} 7... d4 {[%clk 0:10:06.9]} 8. Na3 {[%clk 0:09:45.3]}
8... Nc6 {[%clk 0:10:05.6]} 9. Nc4 {[%clk 0:09:44]} 9... Qc7 {[%clk 0:10:00.7]}
10. c3 {[%clk 0:09:40.9]} 10... Rd8 {[%clk 0:09:54.7]} 11. Bd2 {[%clk
0:09:38.1]} 11... Be6 {[%clk 0:09:52.9]} 12. cxd4 {[%clk 0:09:35.8]} 12... cxd4
{[%clk 0:09:53.8]} 13. Rc1 {[%clk 0:09:36.4]} 13... Rac8 {[%clk 0:09:44.3]} 14.
b4 {[%clk 0:09:32]} 14... Bxc4 {[%clk 0:09:18.9]} 15. Rxc4 {[%clk 0:09:31.1]}
15... Qb6 {[%clk 0:09:17.1]} 16. a4 {[%clk 0:09:29.2]} 16... a6 {[%clk 0:09:15]}
17. e4 {[%clk 0:08:41.9]} 17... Ng4 {[%clk 0:08:38.3]} 18. Bh3 {[%clk
0:08:42.1]} 18... h5 {[%clk 0:08:32.1]} 19. Qc1 {[%clk 0:08:07.3]} 19... e6
{[%clk 0:08:18.3]} 20. Bxg4 {[%clk 0:07:27.4]} 20... hxg4 {[%clk 0:08:20.2]} 21.
Ng5 {[%clk 0:07:29]} 21... Ne7 {[%clk 0:07:47.7]} 22. e5 {[%clk 0:07:15.2]}
22... Rxc4 {[%clk 0:07:43.6]} 23. Qxc4 {[%clk 0:07:17.1]} 23... Rc8 {[%clk
0:07:35]} 24. Qb3 {[%clk 0:07:16.8]} 24... Nd5 {[%clk 0:07:31.6]} 25. Ne4 {[%clk
0:07:05.1]} 25... Bf8 {[%clk 0:07:31.2]} 26. Rb1 {[%clk 0:07:05.3]} 26... Kg7
{[%clk 0:07:14.8]} 27. Nf2 {[%clk 0:06:45.4]} 27... Bxb4 {[%clk 0:06:31.2]} 28.
Bxb4 {[%clk 0:06:39.2]} 28... Nxb4 {[%clk 0:06:33.1]} 29. Kg2 {[%clk 0:05:05.5]}
29... a5 {[%clk 0:06:17.6]} 30. Nxg4 {[%clk 0:05:03.5]} 30... Rc3 {[%clk
0:06:07.4]} 31. Qb2 {[%clk 0:04:54]} 31... Qc6+ {[%clk 0:06:06.3]} 32. Kh3
{[%clk 0:04:50.4]} 32... Rc2 {[%clk 0:05:23.4]} 33. Qxd4 {[%clk 0:04:44.2]}
33... Qg2+ {[%clk 0:05:24.3]} 34. Kh4 {[%clk 0:04:45.3]} 34... Rc8 {[%clk
0:05:26.2]} 35. Nf6 {[%clk 0:04:43.3]} 35... Qxh2+ {[%clk 0:05:21.9]} 36. Kg4
{[%clk 0:04:41.7]} 36... Qe2+ {[%clk 0:05:19.9]} 37. Kg5 {[%clk 0:04:42.7]}
37... Rh8 {[%clk 0:05:13]} 38. g4 {[%clk 0:04:42.8]} 38... Qh2 {[%clk
0:04:54.9]} 0-1

[Event "GrandPrix_29.05"]
[Site "Chess.com"]
[Date "2020.05.29"]
[Round "6"]
[White "kostasam18"]
[Black "Belka1989"]
[Result "1-0"]
[WhiteElo "2069"]
[BlackElo "2059"]
[TimeControl "600+2"]
[EndTime "11:53:17 PDT"]
[Termination "kostasam18 won by resignation"]

1. d4 {[%clk 0:10:00.1]} 1... Nf6 {[%clk 0:10:00.3]} 2. c4 {[%clk 0:09:59.4]}
2... e5 {[%clk 0:10:01.3]} 3. dxe5 {[%clk 0:09:59.4]} 3... Ng4 {[%clk 0:10:02]}
4. Bf4 {[%clk 0:09:59.5]} 4... Bb4+ {[%clk 0:10:02.3]} 5. Nd2 {[%clk 0:09:55.1]}
5... Nc6 {[%clk 0:10:03]} 6. a3 {[%clk 0:09:53.1]} 6... Bxd2+ {[%clk 0:09:47.1]}
7. Qxd2 {[%clk 0:09:50.2]} 7... Ngxe5 {[%clk 0:09:46.3]} 8. e3 {[%clk
0:09:49.6]} 8... d6 {[%clk 0:09:41.8]} 9. Nf3 {[%clk 0:09:47.9]} 9... O-O {[%clk
0:09:38.3]} 10. Be2 {[%clk 0:09:45.4]} 10... b6 {[%clk 0:09:31.5]} 11. Nxe5
{[%clk 0:09:39.1]} 11... Nxe5 {[%clk 0:09:29.7]} 12. Bxe5 {[%clk 0:09:36.6]}
12... dxe5 {[%clk 0:09:31.6]} 13. Qxd8 {[%clk 0:09:36.7]} 13... Rxd8 {[%clk
0:09:33.5]} 14. Bf3 {[%clk 0:09:37.7]} 14... Rb8 {[%clk 0:09:32]} 15. Rd1 {[%clk
0:09:37.6]} 15... Be6 {[%clk 0:09:30.3]} 16. Bd5 {[%clk 0:09:31.5]} 16... Bd7
{[%clk 0:08:57.7]} 17. Ke2 {[%clk 0:09:26]} 17... c6 {[%clk 0:08:25.3]} 18. Be4
{[%clk 0:09:19]} 18... f5 {[%clk 0:08:19.4]} 19. Bc2 {[%clk 0:09:17.7]} 19...
Kf7 {[%clk 0:08:17.3]} 20. Rd6 {[%clk 0:09:14.7]} 20... g6 {[%clk 0:06:09.5]}
21. Rhd1 {[%clk 0:09:09.9]} 21... Ke7 {[%clk 0:06:09]} 22. b4 {[%clk 0:09:02.5]}
22... Be8 {[%clk 0:05:03.9]} 23. Rxd8 {[%clk 0:08:49]} 23... Rxd8 {[%clk
0:05:05.8]} 24. Rxd8 {[%clk 0:08:49.1]} 24... Kxd8 {[%clk 0:05:07.7]} 25. c5
{[%clk 0:08:48.9]} 25... bxc5 {[%clk 0:04:43.9]} 26. bxc5 {[%clk 0:08:48]} 26...
Bf7 {[%clk 0:04:45.4]} 27. Kd3 {[%clk 0:08:44.2]} 27... Ke7 {[%clk 0:04:40.8]}
28. f4 {[%clk 0:08:43]} 28... Kf6 {[%clk 0:04:41.7]} 29. g3 {[%clk 0:08:37.6]}
29... h6 {[%clk 0:04:37.2]} 30. h4 {[%clk 0:08:35.8]} 30... g5 {[%clk
0:04:31.6]} 31. hxg5+ {[%clk 0:08:32.9]} 31... hxg5 {[%clk 0:04:32]} 32. Kc3
{[%clk 0:08:34.1]} 32... exf4 {[%clk 0:04:13]} 33. exf4 {[%clk 0:08:32.7]} 33...
gxf4 {[%clk 0:04:14.9]} 34. gxf4 {[%clk 0:08:33.2]} 34... Be6 {[%clk 0:04:14.6]}
35. Kb4 {[%clk 0:08:31.8]} 35... Bc8 {[%clk 0:04:15.3]} 36. Ka5 {[%clk
0:08:30.9]} 36... Ke6 {[%clk 0:03:35.8]} 37. Bb3+ {[%clk 0:08:30]} 37... Kd7
{[%clk 0:03:36.2]} 38. Bc4 {[%clk 0:08:25.2]} 38... Kc7 {[%clk 0:03:35]} 39. Kb4
{[%clk 0:08:14.2]} 39... Kd7 {[%clk 0:03:30.4]} 40. Kc3 {[%clk 0:08:14.2]} 40...
Ke7 {[%clk 0:03:30.5]} 41. Kd4 {[%clk 0:08:13.6]} 41... Kf6 {[%clk 0:03:31.6]}
42. Bd3 {[%clk 0:08:11]} 42... Be6 {[%clk 0:03:30.1]} 43. Kc3 {[%clk 0:07:36.9]}
43... Bd5 {[%clk 0:03:22.8]} 44. Kb4 {[%clk 0:07:32.8]} 44... Be6 {[%clk
0:03:21]} 45. Ka5 {[%clk 0:07:32.2]} 45... Bc8 {[%clk 0:03:22.3]} 46. Ba6 {[%clk
0:07:27.9]} 46... Be6 {[%clk 0:03:23.3]} 47. Bb7 {[%clk 0:07:27.4]} 47... Bd5
{[%clk 0:03:21.2]} 48. Ka6 {[%clk 0:07:28.2]} 48... Kg6 {[%clk 0:03:22.8]} 49.
Bc8 {[%clk 0:07:06.5]} 49... Kh5 {[%clk 0:03:24.7]} 50. Bxf5 {[%clk 0:07:05.1]}
50... Kh4 {[%clk 0:03:23.1]} 51. Bc8 {[%clk 0:07:04.5]} 1-0

[Event "GrandPrix_29.05"]
[Site "Chess.com"]
[Date "2020.05.29"]
[Round "6"]
[White "Bacyanide"]
[Black "hubertsmazak"]
[Result "1-0"]
[WhiteElo "2515"]
[BlackElo "2447"]
[TimeControl "600+2"]
[EndTime "11:54:02 PDT"]
[Termination "Bacyanide won by resignation"]

1. d4 {[%clk 0:10:01.9]} 1... Nf6 {[%clk 0:10:00]} 2. Nf3 {[%clk 0:10:01.9]}
2... d5 {[%clk 0:10:00.8]} 3. Bf4 {[%clk 0:10:02.2]} 3... c5 {[%clk 0:09:52.2]}
4. e3 {[%clk 0:10:00.1]} 4... Nc6 {[%clk 0:09:53.5]} 5. Nbd2 {[%clk 0:10:00.8]}
5... Qb6 {[%clk 0:09:51.5]} 6. dxc5 {[%clk 0:09:57.9]} 6... Qxb2 {[%clk
0:09:52.4]} 7. Rb1 {[%clk 0:09:57.6]} 7... Qc3 {[%clk 0:09:53.3]} 8. Bb5 {[%clk
0:09:58.2]} 8... e6 {[%clk 0:09:21.3]} 9. O-O {[%clk 0:09:41.7]} 9... Be7 {[%clk
0:08:54.9]} 10. e4 {[%clk 0:09:01.1]} 10... O-O {[%clk 0:08:25.6]} 11. e5 {[%clk
0:08:43.8]} 11... Nd7 {[%clk 0:08:16.4]} 12. Rb3 {[%clk 0:08:25.3]} 12... Qa5
{[%clk 0:07:54.8]} 13. Ng5 {[%clk 0:07:34.6]} 13... h6 {[%clk 0:07:00.9]} 14.
Qh5 {[%clk 0:07:09.5]} 14... Ncxe5 {[%clk 0:06:31.7]} 15. Nxe6 {[%clk
0:06:20.2]} 15... fxe6 {[%clk 0:06:19.3]} 16. Bxh6 {[%clk 0:06:14.2]} 16... gxh6
{[%clk 0:04:39.8]} 17. Rg3+ {[%clk 0:05:58.6]} 17... Bg5 {[%clk 0:04:25.4]} 18.
Qxh6 {[%clk 0:05:44]} 18... Qxb5 {[%clk 0:03:14.4]} 19. Rxg5+ {[%clk 0:05:02]}
19... Kf7 {[%clk 0:03:15.6]} 20. Rg7+ {[%clk 0:05:02.5]} 20... Ke8 {[%clk
0:03:17]} 21. Qxe6+ {[%clk 0:05:03.5]} 21... Kd8 {[%clk 0:03:16.7]} 22. Qe7+
{[%clk 0:05:04.6]} 22... Kc7 {[%clk 0:03:18.1]} 23. Qxe5+ {[%clk 0:05:04.4]}
23... Kd8 {[%clk 0:03:13.6]} 24. Qe7+ {[%clk 0:05:02]} 24... Kc7 {[%clk
0:03:15]} 25. Qxf8 {[%clk 0:04:56.1]} 25... Qc6 {[%clk 0:03:14.7]} 26. Qf4+
{[%clk 0:04:35.3]} 26... Kd8 {[%clk 0:03:10.8]} 27. Rg8+ {[%clk 0:04:33]} 1-0

[Event "GrandPrix_29.05"]
[Site "Chess.com"]
[Date "2020.05.29"]
[Round "6"]
[White "Khayala13"]
[Black "HElissalt"]
[Result "0-1"]
[WhiteElo "1821"]
[BlackElo "1820"]
[TimeControl "600+2"]
[EndTime "11:54:04 PDT"]
[Termination "HElissalt won by resignation"]

1. e4 {[%clk 0:09:25.3]} 1... c5 {[%clk 0:09:57.3]} 2. c3 {[%clk 0:09:19.1]}
2... d6 {[%clk 0:09:45.3]} 3. d4 {[%clk 0:09:18.3]} 3... Nf6 {[%clk 0:09:43.8]}
4. Bd3 {[%clk 0:09:15.8]} 4... Nc6 {[%clk 0:09:41.7]} 5. Ne2 {[%clk 0:09:11]}
5... e5 {[%clk 0:09:11.5]} 6. d5 {[%clk 0:09:00.6]} 6... Ne7 {[%clk 0:09:07.2]}
7. O-O {[%clk 0:08:56.1]} 7... Ng6 {[%clk 0:09:06.3]} 8. f4 {[%clk 0:08:41.4]}
8... exf4 {[%clk 0:09:02.5]} 9. Nxf4 {[%clk 0:08:28.3]} 9... Ne5 {[%clk
0:09:02.5]} 10. Bc2 {[%clk 0:08:09.7]} 10... g6 {[%clk 0:08:28.8]} 11. Nd3
{[%clk 0:07:58.8]} 11... Nfg4 {[%clk 0:08:22.8]} 12. Nxe5 {[%clk 0:07:53.5]}
12... Nxe5 {[%clk 0:08:21.8]} 13. Nd2 {[%clk 0:07:51.4]} 13... Bg7 {[%clk
0:08:22]} 14. Nf3 {[%clk 0:07:37.8]} 14... O-O {[%clk 0:08:13.6]} 15. Nxe5
{[%clk 0:07:37.3]} 15... Bxe5 {[%clk 0:08:13.8]} 16. Bh6 {[%clk 0:07:35]} 16...
Qh4 {[%clk 0:08:01.2]} 17. Bf4 {[%clk 0:06:44]} 17... Bxf4 {[%clk 0:07:36.4]}
18. g3 {[%clk 0:06:42.5]} 18... Be3+ {[%clk 0:07:16.6]} 19. Kh1 {[%clk
0:06:42.4]} 19... Qh6 {[%clk 0:06:52]} 20. e5 {[%clk 0:06:34.6]} 20... dxe5
{[%clk 0:06:40.2]} 21. Qf3 {[%clk 0:06:13.8]} 21... Bh3 {[%clk 0:05:43.6]} 22.
Rfe1 {[%clk 0:06:08.6]} 22... Bg5 {[%clk 0:05:42.2]} 23. Rxe5 {[%clk 0:06:04.6]}
23... Rae8 {[%clk 0:05:14.8]} 24. Rae1 {[%clk 0:05:58]} 24... Rxe5 {[%clk
0:05:02.4]} 25. Rxe5 {[%clk 0:05:59.9]} 25... Bd8 {[%clk 0:05:02.7]} 26. Qf2
{[%clk 0:05:25.2]} 26... Qc1+ {[%clk 0:04:46.9]} 27. Re1 {[%clk 0:05:19.9]}
27... Qg5 {[%clk 0:04:47.5]} 28. Bb3 {[%clk 0:05:13]} 28... Bc7 {[%clk
0:04:37.1]} 29. Qxc5 {[%clk 0:04:35.1]} 29... Qd2 {[%clk 0:04:25.4]} 30. Rg1
{[%clk 0:03:38.5]} 30... Bb6 {[%clk 0:04:24.2]} 0-1

[Event "GrandPrix_29.05"]
[Site "Chess.com"]
[Date "2020.05.29"]
[Round "6"]
[White "Alex_Molchanov"]
[Black "Jaka_Brilej"]
[Result "1-0"]
[WhiteElo "2084"]
[BlackElo "2136"]
[TimeControl "600+2"]
[EndTime "11:54:12 PDT"]
[Termination "Alex_Molchanov won by resignation"]

1. d4 {[%clk 0:10:01]} 1... f5 {[%clk 0:09:57]} 2. g3 {[%clk 0:09:59.5]} 2...
Nf6 {[%clk 0:09:49.5]} 3. Bg2 {[%clk 0:10:00.5]} 3... g6 {[%clk 0:09:49.8]} 4.
Nh3 {[%clk 0:09:59.7]} 4... Bg7 {[%clk 0:09:50.2]} 5. Nf4 {[%clk 0:10:00.9]}
5... O-O {[%clk 0:09:50.3]} 6. h4 {[%clk 0:10:02.4]} 6... d6 {[%clk 0:09:46.6]}
7. d5 {[%clk 0:10:01.8]} 7... c6 {[%clk 0:09:15.9]} 8. Nc3 {[%clk 0:10:00.3]}
8... e5 {[%clk 0:08:38.1]} 9. dxe6 {[%clk 0:09:51.5]} 9... Qe7 {[%clk
0:08:28.9]} 10. h5 {[%clk 0:09:45.9]} 10... g5 {[%clk 0:07:59]} 11. h6 {[%clk
0:09:45.1]} 11... Bh8 {[%clk 0:07:59.7]} 12. Nh5 {[%clk 0:09:40.6]} 12... Ng4
{[%clk 0:07:52.1]} 13. Qd2 {[%clk 0:08:52.1]} 13... f4 {[%clk 0:07:11.3]} 14.
gxf4 {[%clk 0:08:49.2]} 14... Bxe6 {[%clk 0:07:12]} 15. Ne4 {[%clk 0:07:24.3]}
15... Bd5 {[%clk 0:06:31.4]} 16. Rg1 {[%clk 0:06:46.3]} 16... Bxe4 {[%clk
0:06:16.4]} 17. Bxe4 {[%clk 0:06:46.4]} 17... Qxe4 {[%clk 0:06:17]} 18. f3
{[%clk 0:06:45.4]} 18... Qd4 {[%clk 0:05:19]} 19. Rxg4 {[%clk 0:06:32.6]} 19...
Qxd2+ {[%clk 0:05:12.4]} 20. Bxd2 {[%clk 0:06:34.5]} 20... Nd7 {[%clk
0:05:09.2]} 21. Rxg5+ {[%clk 0:05:32.6]} 21... Kf7 {[%clk 0:05:07.7]} 22. O-O-O
{[%clk 0:05:32.3]} 22... d5 {[%clk 0:05:05.8]} 23. e4 {[%clk 0:05:27.5]} 23...
Nf6 {[%clk 0:04:40.1]} 24. Rf5 {[%clk 0:04:42.8]} 24... Ke6 {[%clk 0:04:15.2]}
25. Ng7+ {[%clk 0:04:12.6]} 25... Bxg7 {[%clk 0:04:06.5]} 26. hxg7 {[%clk
0:04:12.4]} 26... Rg8 {[%clk 0:04:08.4]} 27. Bc3 {[%clk 0:03:59.1]} 27... Nd7
{[%clk 0:04:02]} 28. Rh5 {[%clk 0:03:48.9]} 28... dxe4 {[%clk 0:03:56.1]} 29.
fxe4 {[%clk 0:03:44]} 1-0